lending/lending_fUSD_20240507
["ID","MTS","AMOUNT","RATE_DAILY","PERIOD"]
[326564321,1715109102403,-79.72116083,0.00019178,2]
[326564322,1715109102414,-256.7,0.00019178,2]
[326564323,1715109102427,-163.57883917,0.00019178,2]
[326564324,1715109102438,-500.0,0.00019452,2]
[326564325,1715109102447,-500.0,0.00019452,2]
[326564326,1715109102457,-982.06,0.00019452,2]
[326564327,1715109102466,-500.0,0.00019726,2]
[326564328,1715109102475,-500.0,0.0002,2]
[326564329,1715109102485,-500.0,0.00020273,2]
[326564330,1715109102495,-1133.55874987,0.00021643,2]
[326564331,1715109102504,-1495.07,0.00021643,2]
[326564332,1715109102514,-1247.39,0.00021643,2]
[326564333,1715109102523,-2090.62,0.00021643,2]
[326564334,1715109102533,-609.28,0.00021643,2]
[326564335,1715109102543,-500.0,0.00021643,2]
[326564336,1715109102552,-576.38,0.00021643,2]
[326564337,1715109102562,-500.0,0.00021643,2]
[326564338,1715109102572,-4236.16,0.00021643,2]
[326564339,1715109102581,-1443.45,0.00021643,2]
[326564340,1715109102593,-952.68,0.00021643,2]
[326564341,1715109102602,-500.0,0.00021643,2]
[326564342,1715109102618,-525.41,0.00021643,2]
[326564343,1715109102628,-4439.92,0.00021643,2]
[326564344,1715109102637,-4763.7,0.00021643,2]
[326564345,1715109102647,-690.08,0.00021643,2]
[326564346,1715109102658,-2899.93,0.00021643,2]
[326564347,1715109102668,-342.74676096,0.00021643,2]
[326564348,1715109102680,-1308.14435,0.00021643,2]
[326564349,1715109102691,-267.77265871,0.00021643,2]
[326564350,1715109102704,-1294.86623033,0.00021643,2]
[326564351,1715109102713,-500.0,0.00021643,2]
[326564352,1715109102723,-1469.01,0.00021643,2]
[326564353,1715109102733,-2058.55,0.00021643,2]
[326564354,1715109102742,-500.0,0.00021643,2]
[326564355,1715109102752,-1807.87,0.00021643,2]
[326564356,1715109102761,-737.92,0.00021643,2]
[326564357,1715109102770,-1387.57,0.00021643,2]
[326564358,1715109102779,-919.82,0.00021643,2]
[326564359,1715109102790,-3045.65,0.00021643,2]
[326564360,1715109102799,-1092.73,0.00021643,2]
[326564361,1715109102810,-1691.25,0.00021643,2]
[326564362,1715109102820,-543.72,0.00021643,2]
[326564363,1715109102829,-2744.29,0.00021643,2]
[326564364,1715109102839,-1026.13,0.00021643,2]
[326564365,1715109102848,-1345.09,0.00021643,2]
[326564366,1715109102858,-3663.09,0.00021643,2]
[326564367,1715109102868,-571.79,0.00021643,2]
[326564368,1715109102879,-920.02,0.00021643,2]
[326564369,1715109102888,-554.62,0.00021643,2]
[326564370,1715109102897,-2041.82,0.00021643,2]
[326564371,1715109102907,-1000.0,0.00021742,2]
[326564372,1715109102916,-300.0,0.000218,7]
[326564373,1715109102926,-300.0,0.000219,7]
[326564374,1715109102935,-150.0,0.00021913,2]
[326564375,1715109102945,-3017.84240206,0.00021916,2]
[326564376,1715109102954,-500.0,0.00021917,2]
[326564377,1715109102963,-306.86903637,0.00021917,2]
[326564378,1715109102972,-500.0,0.00021917,2]
[326564379,1715109102982,-616.55,0.00021917,2]
[326564380,1715109102991,-609.92,0.00021917,2]
[326564381,1715109103001,-637.67,0.00021917,2]
[326564382,1715109103010,-500.0,0.00021917,2]
[326564383,1715109103019,-500.0,0.00021917,2]
[326564384,1715109103028,-516.31,0.00021917,2]
[326564385,1715109103038,-500.0,0.00021917,2]
[326564386,1715109103047,-500.0,0.00021917,2]
[326564387,1715109103057,-500.0,0.00021917,2]
[326564388,1715109103067,-500.0,0.00021917,2]
[326564389,1715109103077,-500.0,0.00021917,2]
[326564390,1715109103086,-500.0,0.00021917,2]
[326564391,1715109103095,-500.0,0.00021917,2]
[326564392,1715109103104,-500.0,0.00021917,2]
[326564393,1715109103113,-500.0,0.00021917,2]
[326564394,1715109103122,-500.0,0.00021917,2]
[326564395,1715109103131,-500.0,0.00021917,2]
[326564396,1715109103140,-500.0,0.00021917,2]
[326564397,1715109103149,-500.0,0.00021917,2]
[326564398,1715109103158,-500.0,0.00021917,2]
[326564399,1715109103167,-500.0,0.00021917,2]
[326564400,1715109103176,-511.83,0.00021917,2]
[326564401,1715109103185,-640.82,0.00021917,2]
[326564402,1715109103195,-1039.89,0.00021917,2]
[326564403,1715109103204,-1296.96,0.00021917,2]
[326564404,1715109103213,-500.0,0.00021917,2]
[326564405,1715109103222,-1344.86,0.00021917,2]
[326564406,1715109103231,-510.16,0.00021917,2]
[326564407,1715109103240,-500.0,0.00021917,2]
[326564408,1715109103249,-500.0,0.00021917,2]
[326564409,1715109103259,-1140.53,0.00021917,2]
[326564410,1715109103269,-500.0,0.00021917,2]
[326564411,1715109103278,-500.0,0.00021917,2]
[326564412,1715109103288,-548.18,0.00021917,2]
[326564413,1715109103296,-500.0,0.00021917,2]
[326564414,1715109103306,-500.0,0.00021917,2]
[326564415,1715109103315,-500.0,0.00021917,2]
[326564416,1715109103324,-500.0,0.00021917,2]
[326564417,1715109103334,-587.62,0.00021917,2]
[326564418,1715109103343,-500.0,0.00021917,2]
[326564419,1715109103352,-500.0,0.00021917,2]
[326564420,1715109103362,-737.75,0.00021917,2]
[326564421,1715109103371,-500.0,0.00021917,2]
[326564422,1715109103381,-500.0,0.00021917,2]
[326564423,1715109103390,-500.0,0.00021917,2]
[326564424,1715109103400,-965.36,0.00021917,2]
[326564425,1715109103410,-530.95576253,0.00021917,2]
[326564426,1715109103420,-272.50642354,0.00021917,2]
[326564427,1715109103430,-772.42,0.00021917,2]
[326564428,1715109103440,-1277.92,0.00021917,2]
[326564429,1715109103449,-500.0,0.00021917,2]
[326564430,1715109103458,-634.37,0.00021917,2]
[326564431,1715109103467,-500.0,0.00021917,2]
[326564432,1715109103477,-518.82,0.00021917,2]
[326564433,1715109103486,-854.42,0.00021917,2]
[326564434,1715109103496,-834.2,0.00021917,2]
[326564435,1715109103506,-500.0,0.00021917,2]
[326564436,1715109103515,-500.0,0.00021917,2]
[326564437,1715109103525,-559.02,0.00021917,2]
[326564438,1715109103535,-500.0,0.00021917,2]
[326564439,1715109103545,-1295.25,0.00021917,2]
[326564440,1715109103554,-1379.17,0.00021917,2]
[326564441,1715109103563,-500.0,0.00021917,2]
[326564442,1715109103572,-500.0,0.00021917,2]
[326564443,1715109103581,-756.88,0.00021917,2]
[326564444,1715109103591,-1051.91,0.00021917,2]
[326564445,1715109103600,-605.72,0.00021917,2]
[326564446,1715109103610,-500.0,0.00021917,2]
[326564447,1715109103623,-500.0,0.00021917,2]
[326564448,1715109103632,-500.0,0.00021917,2]
[326564449,1715109103641,-830.22,0.00021917,2]
[326564450,1715109103651,-500.0,0.00021917,2]
[326564451,1715109103660,-1384.39,0.00021917,2]
[326564452,1715109103669,-500.0,0.00021917,2]
[326564453,1715109103678,-504.54,0.00021917,2]
[326564454,1715109103687,-675.32,0.00021917,2]
[326564455,1715109103698,-849.26,0.00021917,2]
[326564456,1715109103708,-964.69,0.00021917,2]
[326564457,1715109103717,-500.0,0.00021917,2]
[326564458,1715109103726,-775.4,0.00021917,2]
[326564459,1715109103735,-500.0,0.00021917,2]
[326564460,1715109103745,-642.62,0.00021917,2]
[326564461,1715109103754,-1511.31,0.00021917,2]
[326564462,1715109103763,-777.92,0.00021917,2]
[326564463,1715109103772,-1094.98,0.00021917,2]
[326564464,1715109103782,-751.54,0.00021917,2]
[326564465,1715109103792,-500.0,0.00021917,2]
[326564466,1715109103801,-529.2,0.00021917,2]
[326564467,1715109103811,-500.0,0.00021917,2]
[326564468,1715109103820,-824.9,0.00021917,2]
[326564469,1715109103829,-500.0,0.00021917,2]
[326564470,1715109103839,-740.96,0.00021917,2]
[326564471,1715109103848,-500.0,0.00021917,2]
[326564472,1715109103858,-1194.81,0.00021917,2]
[326564473,1715109103867,-500.0,0.00021917,2]
[326564474,1715109103876,-500.0,0.00021917,2]
[326564475,1715109103885,-665.48,0.00021917,2]
[326564476,1715109103894,-338.4303662,0.00021917,2]
[326564477,1715109103904,-712.08,0.00021917,2]
[326564478,1715109103914,-500.0,0.00021917,2]
[326564479,1715109103923,-1308.28,0.00021917,2]
[326564480,1715109103932,-500.0,0.00021917,2]
[326564481,1715109103942,-531.86,0.00021917,2]
[326564482,1715109103951,-661.12,0.00021917,2]
[326564483,1715109103961,-1409.45,0.00021917,2]
[326564484,1715109103970,-500.0,0.00021917,2]
[326564485,1715109103979,-500.0,0.00021917,2]
[326564486,1715109103988,-500.0,0.00021917,2]
[326564487,1715109103998,-500.0,0.00021917,2]
[326564488,1715109104008,-500.0,0.00021917,2]
[326564489,1715109104017,-1020.83,0.00021917,2]
[326564490,1715109104026,-500.0,0.00021917,2]
[326564491,1715109104036,-500.0,0.00021917,2]
[326564492,1715109104045,-1414.86,0.00021917,2]
[326564493,1715109104055,-500.0,0.00021917,2]
[326564494,1715109104064,-731.07,0.00021917,2]
[326564495,1715109104073,-500.0,0.00021917,2]
[326564496,1715109104082,-390.05927843,0.00021917,2]
[326564497,1715109104091,-711.26,0.00021917,2]
[326564498,1715109104100,-500.0,0.00021917,2]
[326564499,1715109104109,-1013.61,0.00021917,2]
[326564500,1715109104119,-500.0,0.00021917,2]
[326564501,1715109104128,-500.0,0.00021917,2]
[326564502,1715109104138,-500.0,0.00021917,2]
[326564503,1715109104147,-735.22,0.00021917,2]
[326564504,1715109104156,-500.0,0.00021917,2]
[326564505,1715109104165,-1169.14,0.00021917,2]
[326564506,1715109104174,-544.24,0.00021917,2]
[326564507,1715109104184,-1704.43,0.00021917,2]
[326564508,1715109104193,-500.0,0.00021917,2]
[326564509,1715109104202,-500.0,0.00021917,2]
[326564510,1715109104212,-557.71,0.00021917,2]
[326564511,1715109104222,-850.54,0.00021917,2]
[326564512,1715109104231,-500.0,0.00021917,2]
[326564513,1715109104240,-949.21,0.00021917,2]
[326564514,1715109104250,-718.44,0.00021917,2]
[326564515,1715109104259,-4821.02,0.00021917,2]
[326564516,1715109104268,-500.0,0.00021917,2]
[326564517,1715109104277,-1209.89,0.00021917,2]
[326564518,1715109104286,-521.54,0.00021917,2]
[326564519,1715109104295,-500.0,0.00021917,2]
[326564520,1715109104305,-717.93,0.00021917,2]
[326564521,1715109104314,-500.0,0.00021917,2]
[326564522,1715109104323,-500.0,0.00021917,2]
[326564523,1715109104333,-500.0,0.00021917,2]
[326564524,1715109104342,-533.96,0.00021917,2]
[326564525,1715109104352,-500.0,0.00021917,2]
[326564526,1715109104361,-928.47,0.00021917,2]
[326564527,1715109104370,-857.36,0.00021917,2]
[326564528,1715109104379,-532.62,0.00021917,2]
[326564529,1715109104390,-2333.84,0.00021917,2]
[326564530,1715109104399,-678.25,0.00021917,2]
[326564531,1715109104410,-1851.61,0.00021917,2]
[326564532,1715109104419,-563.87,0.00021917,2]
[326564533,1715109104428,-500.0,0.00021917,2]
[326564534,1715109104437,-547.36,0.00021917,2]
[326564535,1715109104446,-500.0,0.00021917,2]
[326564536,1715109104456,-753.1,0.00021917,2]
[326564537,1715109104465,-500.0,0.00021917,2]
[326564538,1715109104475,-1246.61,0.00021917,2]
[326564539,1715109104485,-1396.46,0.00021917,2]
[326564540,1715109104494,-523.32,0.00021917,2]
[326564541,1715109104504,-1222.09,0.00021917,2]
[326564542,1715109104515,-500.0,0.00021917,2]
[326564543,1715109104526,-1099.92,0.00021917,2]
[326564544,1715109104536,-3883.49,0.00021917,2]
[326564545,1715109104547,-500.0,0.00021917,2]
[326564546,1715109104556,-500.0,0.00021917,2]
[326564547,1715109104566,-500.0,0.00021917,2]
[326564548,1715109104576,-1051.16,0.00021917,2]
[326564549,1715109104585,-500.0,0.00021917,2]
[326564550,1715109104595,-500.0,0.00021917,2]
[326564551,1715109104605,-798.3,0.00021917,2]
[326564552,1715109104619,-500.0,0.00021917,2]
[326564553,1715109104628,-1024.08,0.00021917,2]
[326564554,1715109104638,-500.0,0.00021917,2]
[326564555,1715109104648,-500.0,0.00021917,2]
[326564556,1715109104658,-3726.27,0.00021917,2]
[326564557,1715109104667,-500.0,0.00021917,2]
[326564558,1715109104677,-572.78,0.00021917,2]
[326564559,1715109104687,-500.0,0.00021917,2]
[326564560,1715109104698,-500.0,0.00021917,2]
[326564561,1715109104707,-1075.66,0.00021917,2]
[326564562,1715109104716,-500.0,0.00021917,2]
[326564563,1715109104725,-1074.47,0.00021917,2]
[326564564,1715109104734,-614.33,0.00021917,2]
[326564565,1715109104744,-1390.99,0.00021917,2]
[326564566,1715109104754,-500.0,0.00021917,2]
[326564567,1715109104763,-1067.93,0.00021917,2]
[326564568,1715109104772,-500.0,0.00021917,2]
[326564569,1715109104782,-298.7346867,0.00021917,2]
[326564570,1715109104793,-828.77,0.00021917,2]
[326564571,1715109104804,-931.21,0.00021917,2]
[326564572,1715109104815,-500.0,0.00021917,2]
[326564573,1715109104824,-500.57,0.00021917,2]
[326564574,1715109104833,-246.61177712,0.00021917,2]
[326564575,1715109104843,-500.0,0.00021917,2]
[326564576,1715109104853,-500.0,0.00021917,2]
[326564577,1715109104864,-544.9,0.00021917,2]
[326564578,1715109104873,-793.32,0.00021917,2]
[326564579,1715109104883,-500.0,0.00021917,2]
[326564580,1715109104891,-1001.63,0.00021917,2]
[326564581,1715109104901,-659.12,0.00021917,2]
[326564582,1715109104910,-500.0,0.00021917,2]
[326564583,1715109104920,-500.0,0.00021917,2]
[326564584,1715109104931,-500.0,0.00021917,2]
[326564585,1715109104942,-876.42,0.00021917,2]
[326564586,1715109104952,-500.0,0.00021917,2]
[326564587,1715109104962,-500.0,0.00021917,2]
[326564588,1715109104972,-1592.65,0.00021917,2]
[326564589,1715109104981,-1382.91,0.00021917,2]
[326564590,1715109104991,-575.18,0.00021917,2]
[326564591,1715109105000,-677.53,0.00021917,2]
[326564592,1715109105010,-676.71,0.00021917,2]
[326564593,1715109105019,-892.36,0.00021917,2]
[326564594,1715109105028,-809.83,0.00021917,2]
[326564595,1715109105039,-798.52,0.00021917,2]
[326564596,1715109105050,-500.0,0.00021917,2]
[326564597,1715109105060,-540.05,0.00021917,2]
[326564598,1715109105070,-500.0,0.00021917,2]
[326564599,1715109105079,-2338.12,0.00021917,2]
[326564600,1715109105089,-627.88,0.00021917,2]
[326564601,1715109105098,-582.92,0.00021917,2]
[326564602,1715109105107,-712.06,0.00021917,2]
[326564603,1715109105117,-1209.49,0.00021917,2]
[326564604,1715109105127,-500.0,0.00021917,2]
[326564605,1715109105136,-624.93,0.00021917,2]
[326564606,1715109105145,-500.0,0.00021917,2]
[326564607,1715109105155,-506.15,0.00021917,2]
[326564608,1715109105165,-1481.7,0.00021917,2]
[326564609,1715109105175,-500.0,0.00021917,2]
[326564610,1715109105184,-500.0,0.00021917,2]
[326564611,1715109105195,-1227.85,0.00021917,2]
[326564612,1715109105205,-803.02,0.00021917,2]
[326564613,1715109105215,-532.75,0.00021917,2]
[326564614,1715109105225,-541.87,0.00021917,2]
[326564615,1715109105234,-1085.64,0.00021917,2]
[326564616,1715109105244,-500.0,0.00021917,2]
[326564617,1715109105253,-563.22,0.00021917,2]
[326564618,1715109105263,-1105.8,0.00021917,2]
[326564619,1715109105272,-500.0,0.00021917,2]
[326564620,1715109105281,-5700.1,0.00021917,2]
[326564621,1715109105292,-500.0,0.00021917,2]
[326564622,1715109105301,-1106.3,0.00021917,2]
[326564623,1715109105311,-1297.44,0.00021917,2]
[326564624,1715109105321,-500.0,0.00021917,2]
[326564625,1715109105330,-1432.86,0.00021917,2]
[326564626,1715109105339,-500.0,0.00021917,2]
[326564627,1715109105348,-1779.56,0.00021917,2]
[326564628,1715109105358,-500.0,0.00021917,2]
[326564629,1715109105368,-748.56,0.00021917,2]
[326564630,1715109105377,-4338.05,0.00021917,2]
[326564631,1715109105386,-2714.86,0.00021917,2]
[326564632,1715109105395,-500.0,0.00021917,2]
[326564633,1715109105405,-979.3,0.00021917,2]
[326564634,1715109105414,-500.0,0.00021917,2]
[326564635,1715109105423,-501.29,0.00021917,2]
[326564636,1715109105432,-2987.38,0.00021917,2]
[326564637,1715109105441,-1056.34,0.00021917,2]
[326564638,1715109105450,-1534.13,0.00021917,2]
[326564639,1715109105460,-896.06,0.00021917,2]
[326564640,1715109105470,-1535.14,0.00021917,2]
[326564641,1715109105479,-500.0,0.00021917,2]
[326564642,1715109105489,-500.0,0.00021917,2]
[326564643,1715109105500,-500.0,0.00021917,2]
[326564644,1715109105509,-1016.39,0.00021917,2]
[326564645,1715109105519,-500.0,0.00021917,2]
[326564646,1715109105529,-839.24,0.00021917,2]
[326564647,1715109105540,-17937.6,0.00021917,2]
[326564648,1715109105549,-3365.77,0.00021917,2]
[326564649,1715109105559,-1219.46,0.00021917,2]
[326564650,1715109105568,-500.0,0.00021917,2]
[326564651,1715109105578,-1074.92,0.00021917,2]
[326564652,1715109105587,-767.65,0.00021917,2]
[326564653,1715109105596,-513.21160953,0.00021917,2]
[326564654,1715109105606,-500.0,0.00021917,2]
[326564655,1715109105619,-3466.46,0.00021917,2]
[326564656,1715109105628,-500.0,0.00021917,2]
[326564657,1715109105638,-1717.75,0.00021917,2]
[326564658,1715109105648,-500.0,0.00021917,2]
[326564659,1715109105658,-500.0,0.00021917,2]
[326564660,1715109105668,-1168.98,0.00021917,2]
[326564661,1715109105678,-3939.72,0.00021917,2]
[326564662,1715109105687,-622.4,0.00021917,2]
[326564663,1715109105699,-9068.98,0.00021917,2]
[326564664,1715109105709,-2099.47,0.00021917,2]
[326564665,1715109105718,-660.56,0.00021917,2]
[326564666,1715109105728,-975.09,0.00021917,2]
[326564667,1715109105737,-7823.11,0.00021917,2]
[326564668,1715109105746,-3638.35,0.00021917,2]
[326564669,1715109105756,-2517.85,0.00021917,2]
[326564670,1715109105766,-3443.28,0.00021917,2]
[326564671,1715109105776,-500.0,0.00021917,2]
[326564672,1715109105786,-500.0,0.00021917,2]
[326564673,1715109105795,-1652.38,0.00021917,2]
[326564674,1715109105806,-862.97,0.00021917,2]
[326564675,1715109105816,-2159.29,0.00021917,2]
[326564676,1715109105825,-626.56,0.00021917,2]
[326564677,1715109105835,-669.45,0.00021917,2]
[326564678,1715109105845,-500.0,0.00021917,2]
[326564679,1715109105854,-544.82,0.00021917,2]
[326564680,1715109105864,-541.77,0.00021917,2]
[326564681,1715109105874,-500.0,0.00021917,2]
[326564682,1715109105884,-558.7,0.00021917,2]
[326564683,1715109105893,-626.2,0.00021917,2]
[326564684,1715109105902,-848.65,0.00021917,2]
[326564685,1715109105912,-1005.88,0.00021917,2]
[326564686,1715109105921,-13278.13,0.00021917,2]
[326564687,1715109105930,-500.0,0.00021917,2]
[326564688,1715109105940,-500.0,0.00021917,2]
[326564689,1715109105949,-500.0,0.00021917,2]
[326564690,1715109105959,-1307.7,0.00021917,2]
[326564691,1715109105968,-500.0,0.00021917,2]
[326564692,1715109105977,-783.4,0.00021917,2]
[326564693,1715109105987,-593.67,0.00021917,2]
[326564694,1715109105998,-20174.99,0.00021917,2]
[326564695,1715109106008,-858.71,0.00021917,2]
[326564696,1715109106018,-811.78,0.00021917,2]
[326564697,1715109106028,-500.0,0.00021917,2]
[326564698,1715109106038,-2207.78,0.00021917,2]
[326564699,1715109106048,-1098.34,0.00021917,2]
[326564700,1715109106056,-581.24,0.00021917,2]
[326564701,1715109106066,-775.24,0.00021917,2]
[326564702,1715109106075,-500.0,0.00021917,2]
[326564703,1715109106085,-640.04,0.00021917,2]
[326564704,1715109106094,-681.51,0.00021917,2]
[326564705,1715109106104,-500.0,0.00021917,2]
[326564706,1715109106113,-500.0,0.00021917,2]
[326564707,1715109106123,-500.0,0.00021917,2]
[326564708,1715109106132,-1309.95,0.00021917,2]
[326564709,1715109106142,-500.0,0.00021917,2]
[326564710,1715109106263,-500.0,0.00021917,2]
[326564711,1715109106273,-1322.4,0.00021917,2]
[326564712,1715109106284,-913.41,0.00021917,2]
[326564713,1715109106295,-1656.54,0.00021917,2]
[326564714,1715109106304,-500.0,0.00021917,2]
[326564715,1715109106314,-500.0,0.00021917,2]
[326564716,1715109106325,-2525.7,0.00021917,2]
[326564717,1715109106335,-1016.48,0.00021917,2]
[326564718,1715109106344,-398.3916654,0.00021917,2]
[326564719,1715109106355,-216.58681598,0.00021917,2]
[326564720,1715109106364,-590.94,0.00021917,2]
[326564721,1715109106374,-1488.9,0.00021917,2]
[326564722,1715109106384,-1089.01,0.00021917,2]
[326564723,1715109106404,-934.18,0.00021917,2]
[326564724,1715109106414,-615.83417945,0.00021917,2]
[326564725,1715109106424,-1223.92,0.00021917,2]
[326564726,1715109106434,-500.0,0.00021917,2]
[326564727,1715109106444,-702.3,0.00021917,2]
[326564728,1715109106455,-1123.02,0.00021917,2]
[326564729,1715109106466,-589.37,0.00021917,2]
[326564730,1715109106475,-500.0,0.00021917,2]
[326564731,1715109106486,-500.0,0.00021917,2]
[326564732,1715109106495,-1456.17,0.00021917,2]
[326564733,1715109106506,-1023.26,0.00021917,2]
[326564734,1715109106516,-1294.89,0.00021917,2]
[326564735,1715109106526,-2029.34,0.00021917,2]
[326564736,1715109106537,-500.0,0.00021917,2]
[326564737,1715109106547,-958.06,0.00021917,2]
[326564738,1715109106556,-3031.7,0.00021917,2]
[326564739,1715109106566,-1797.85,0.00021917,2]
[326564740,1715109106576,-500.0,0.00021917,2]
[326564741,1715109106586,-500.0,0.00021917,2]
[326564742,1715109106595,-500.0,0.00021917,2]
[326564743,1715109106605,-2598.21,0.00021917,2]
[326564744,1715109106618,-2329.42,0.00021917,2]
[326564745,1715109106627,-639.23,0.00021917,2]
[326564746,1715109106637,-1252.65,0.00021917,2]
[326564747,1715109106646,-867.36,0.00021917,2]
[326564748,1715109106657,-500.0,0.00021917,2]
[326564749,1715109106668,-1368.28,0.00021917,2]
[326564750,1715109106677,-1447.62,0.00021917,2]
[326564751,1715109106687,-1495.07,0.00021917,2]
[326564752,1715109106698,-1247.39,0.00021917,2]
[326564753,1715109106707,-2090.62,0.00021917,2]
[326564754,1715109106716,-609.28,0.00021917,2]
[326564755,1715109106726,-500.0,0.00021917,2]
[326564756,1715109106736,-576.38,0.00021917,2]
[326564757,1715109106745,-514.2612431,0.00021917,2]
[326564758,1715109106755,-4236.16,0.00021917,2]
[326564759,1715109106765,-1443.45,0.00021917,2]
[326564760,1715109106776,-952.68,0.00021917,2]
[326564761,1715109106788,-500.0,0.00021917,2]
[326564762,1715109106797,-525.41,0.00021917,2]
[326564763,1715109106808,-4763.7,0.00021917,2]
[326564764,1715109106819,-4439.92,0.00021917,2]
[326564765,1715109106829,-690.08,0.00021917,2]
[326564766,1715109106838,-2899.93,0.00021917,2]
[326564767,1715109106848,-3213.53,0.00021917,2]
[326564768,1715109106858,-500.0,0.00021917,2]
[326564769,1715109106867,-1469.01,0.00021917,2]
[326564770,1715109106877,-2058.55,0.00021917,2]
[326564771,1715109106886,-500.0,0.00021917,2]
[326564772,1715109106896,-1807.87,0.00021917,2]
[326564773,1715109106905,-737.92,0.00021917,2]
[326564774,1715109106914,-1387.57,0.00021917,2]
[326564775,1715109106924,-919.82,0.00021917,2]
[326564776,1715109106934,-3045.65,0.00021917,2]
[326564777,1715109106943,-1092.73,0.00021917,2]
[326564778,1715109106953,-1691.25,0.00021917,2]
[326564779,1715109106963,-543.72,0.00021917,2]
[326564780,1715109106973,-2744.29,0.00021917,2]
[326564781,1715109106982,-1026.13,0.00021917,2]
[326564782,1715109106992,-1345.09,0.00021917,2]
[326564783,1715109107002,-3663.09,0.00021917,2]
[326564784,1715109107012,-571.79,0.00021917,2]
[326564785,1715109107021,-920.02,0.00021917,2]
[326564786,1715109107031,-554.62,0.00021917,2]
[326564787,1715109107041,-2041.82,0.00021917,2]
[326564788,1715109107051,-1025.82010555,0.00021918,10]
[326564789,1715109107060,-250.0,0.00021918,2]
[326564790,1715109107070,-2000.0,0.00021918,2]
[326564791,1715109107080,-250.0,0.00021918,2]
[326564792,1715109107090,-381.58071757,0.00022,2]
[326564793,1715109107099,-491.9403017,0.00022,2]
[326564794,1715109107109,-143164.84189187,0.00022,2]
[326564795,1715109107131,-283.40027717,0.00022,2]
[326564796,1715109107143,-3042.12756515,0.00022,2]
[326564797,1715109107154,-768.06384375,0.00022,2]
[326564798,1715109107167,-1475.867,0.00022,2]
[326564799,1715109107179,-2733.45849143,0.00022,2]
[326564800,1715109107190,-431.03855095,0.00022,2]
[326564801,1715109107202,-1526.69999999,0.00022,2]
[326564802,1715109107214,-33562.16655815,0.00022,2]
[326564803,1715109107225,-97013.67221697,0.00022,2]
[326564804,1715109107237,-624.12173126,0.00022,2]
[326564805,1715109107248,-3521.20474351,0.00022,2]
[326564806,1715109107259,-322.51994525,0.00022,2]
[326564807,1715109107270,-129867.02111512,0.00022,2]
[326564808,1715109107282,-13513.4435892,0.00022,2]
[326564809,1715109107295,-1418.946,0.00022,2]
[326564810,1715109107306,-500.0,0.00022,2]
[326564811,1715109107317,-321.00505625,0.00022,2]
[326564812,1715109107329,-12718.08216078,0.00022,2]
[326564813,1715109107340,-1313.87865291,0.00022,2]
[326564814,1715109107352,-994.63459736,0.00022,2]
[326564815,1715109107363,-53814.68020467,0.00022,2]
[326564816,1715109107374,-867.22167318,0.00022,2]
[326564817,1715109107385,-6000.0,0.00022,2]
[326564818,1715109107397,-42025.40213143,0.00022,2]
[326564819,1715109107408,-771.41124063,0.00022,2]
[326564820,1715109107419,-5169.68238322,0.00022,2]